{"text_format":"1","workbook":"xlsx","n_sheets":30,"sheets":["Начало","Команды","М. 2005-2002","ж. 2005-2002","М.2001-2000","ж.2001-2000","М.1999-1998","Ж.1999-1998","Лист1","Подростки Муж. скорость","Младшие Муж. скорость","Средние Муж. скорость","Старшие Муж. скорость","Взрослые Муж. скорость","Подростки Жен. скорость","Младшие Жен. скорость","Средние Жен. скорость","Старшие Жен. скорость","Взрослые Жен. скорость","Модуль2","Модуль1","Модуль7","Модуль3","Модуль4","Модуль5","Модуль6","Модуль8","Модуль9","Диалог1","Лист2"],"not_rendered":{"charts":0,"images":0,"macros":1,"external_links":0,"defined_names":10,"comments":0,"pivot_tables":0},"unopened":[{"sheet":"Модуль2","index":19,"reason":"part_missing"},{"sheet":"Модуль1","index":20,"reason":"part_missing"},{"sheet":"Модуль7","index":21,"reason":"part_missing"},{"sheet":"Модуль3","index":22,"reason":"part_missing"},{"sheet":"Модуль4","index":23,"reason":"part_missing"},{"sheet":"Модуль5","index":24,"reason":"part_missing"},{"sheet":"Модуль6","index":25,"reason":"part_missing"},{"sheet":"Модуль8","index":26,"reason":"part_missing"},{"sheet":"Модуль9","index":27,"reason":"part_missing"},{"sheet":"Диалог1","index":28,"reason":"not_a_worksheet"}],"bounds":{"document_bytes":16777216,"sheet_cells":100000,"rows_first":2000,"rows_last":500,"rows_between":2000,"halvings":0,"cell_chars":16384,"cell_head_chars":4096},"cells_cut":0,"cells_raw":0,"read":"whole","date_system":"1900"}

{"sheet":"Начало","index":0,"n_rows":19,"n_cols":3,"rows_kept":19,"cut":false,"hidden":false,"merged":[]}
[]
[]
[]
[]
[]
[]
[]
[]
[]
[]
[]
[]
[]
[]
[]
[]
[]
[]
[null,null," "]

{"sheet":"Команды","index":1,"n_rows":9,"n_cols":7,"rows_kept":9,"cut":false,"hidden":false,"merged":[]}
[]
[]
["№","Команда","Город","Тренер-представитель",null,"2005-2002","Подростки М"]
[1,"Арба","Томск",null,null,null,"Подростки Ж"]
[2,"Кедр","Томск",null,null,"2001-2000","Юноши"]
[3,"ДЮСШ-16","Томск",null,null,null,"Девушки"]
[4,null,null,null,null,"1999-1998","Юноши"]
[5,null,null,null,null,null,"Девушки"]
[6,null,null,null,null,null,"ИТОГО"]

{"sheet":"М. 2005-2002","index":2,"n_rows":73,"n_cols":16,"rows_kept":73,"cut":false,"hidden":false,"merged":[[4,0,5,0],[4,1,5,1],[4,3,5,3],[4,4,5,4],[4,8,4,10],[4,12,4,14],[4,15,5,15]]}
[]
[]
[null,null,"ИТОГОВЫЙ ПРОТОКОЛ"]
[null,null,"Подростки юноши 2005-2002"]
["Место","Фамилия, Имя","Год","разр.","Команда","Квалификация",null,null,"Квалификация",null,null,null,"Финал",null,null,"Вып. Разр."]
[null,null,"рожд.",null," ","рез.","+","Балл","рез.","+","Балл","Рейтинг","рез.","+","время"]
[1,"Чье Станислав","2002",1,"СДЮСШОР-16, Л","TOP",null,7,"TOP",null,13.5,{"$f":"(K7*H7)^0.5","v":9.7211110476117906},"TOP",null,"00:01:29.470",2]
[2,"Темерев Влад","2002",3,"Искра","TOP",null,7,"TOP",null,13.5,9.7211110476117906,"TOP",null,"00:02:04.870",3]
[3,"Лушников Тимофей","2004",3,"Искра","TOP",null,7,"TOP",null,13.5,9.7211110476117906,"TOP",null,"00:02:10.870",3]
[4,"Тиняков Вениамин  ","2002","1ю","СДЮСШОР-16","TOP",null,7,"TOP",null,13.5,9.7211110476117906,19,null,null,"1ю"]
[5,"Квашнин Александр","2002",3,"Искра","TOP",null,7,"TOP",null,13.5,9.7211110476117906,17,null,null,"1ю"]
[6,"Кириков Владимир","2006","б/р","СДЮСШОР-16, Л","TOP",null,7,"ТОР",null,13.5,9.7211110476117906,14,"+",null,"1ю"]
[7,"Фирстов Максим","2003","1ю","СДЮСШОР-16, Л","ТОР",null,7,"TOP",null,13.5,9.7211110476117906,11,null,null,"2ю"]
[8,"Кириков Добрыня","2004","б/р","СДЮСШОР-16, Л","TOP",null,7,"TOP",null,13.5,9.7211110476117906,11,null,null,"2ю"]
[9,"Зотов Глеб","2002","3ю","СДЮСШОР-16, Л","TOP",null,7,"TOP",null,13.5,9.7211110476117906,11,null,null,"2ю"]
[10,"Ильин Вячеслав ","2005","3ю","СДЮСШОР-16, Л","TOP",null,7,"ТОР",null,13.5,9.7211110476117906,10,"+",null,"2ю"]
[11,"Пригарнев Илья",2002,"3ю","СДЮСШОР-16, Л","TOP",null,7,"ТОР",null,13.5,9.7211110476117906,10,null,null,"3ю"]
[12,"Пак Константин",2007,"б/р","СДЮСШОР-16, Л","TOP",null,7,"ТОР",null,13.5,9.7211110476117906,10,null,null,"3ю"]
[13,"Галушкин Олег","2003","3ю","Искра",18,"+",14,"TOP",null,13.5,13.74772708486752,null,null,null,"3ю"]
[14,"Михайлов Кирилл","2002","б\\р","Лукоморье","TOP",null,7,18,null,27,13.74772708486752,null,null,null,"3ю"]
[15,"Горшков Кирилл","2002","3ю","СДЮСШОР-16, Л",18,null,15.5,"TOP",null,13.5,14.465476141489432,null,null,null,"3ю"]
[16,"Белозёров Данила ",2002,"3ю","Крылатый",17,null,26,"ТОР",null,13.5,18.734993995195193,null,null,null,"3ю"]
[17,"Иванов Дмитрий  ",2002,"2ю","СДЮСШОР-16",17,null,26,"ТОР",null,13.5,18.734993995195193,null,null,null,"3ю"]
[18,"Левашов Илья ",2003,"1 юн.","Крылатый",17,null,26,"ТОР",null,13.5,18.734993995195193,null,null,null,"3ю"]
[19,"Бычков Никита","2004","б\\р","Лукоморье",17,null,26,"TOP",null,13.5,18.734993995195193,null,null,null,"3ю"]
[20,"Сафонов Костя","2003","3ю","Искра",17,null,26,"TOP",null,13.5,18.734993995195193,null,null,null,"3ю"]
[21,"Богайчук Павел","2002","б\\р","Искра",17,null,26,"TOP",null,13.5,18.734993995195193,null,null,null,"3ю"]
[22,"Сердюков Илья","2002",null,"Индиго",17,null,26,"TOP",null,13.5,18.734993995195193,null,null,null,"3ю"]
[23,"Новосельцев Евгений",2003,"б\\р","Крылатый",17,null,26,"TOP",null,13.5,18.734993995195193,null,null,null,"3ю"]
[24,"Хлопцов Сергей ",2005,"б\\р","Крылатый",16,"+",28,"ТОР",null,13.5,19.442222095223581,null,null,null,"3ю"]
[25,"Подрезов Данил ",2004,"б/р","Арба",16,null,38.5,"TOP",null,13.5,22.798026230355994]
[26,"Белозёров Лука ",2004,"б\\р","Крылатый",18,null,15.5,12,null,38,24.269322199023193]
[27,"Романов Тимофей ",2003,"б\\р","Крылатый",17,"+",17.5,12,null,38,25.787593916455254]
[28,"Черников Степан",2005,"б/р","Созвездие",5,null,52.5,"ТОР",null,13.5,26.622359023948274]
[29,"Корф Петр","2003","1ю","СДЮСШОР-16, Л",5,null,52.5,"TOP",null,13.5,26.622359023948274]
[30,"Волков Михаил","2003","б\\р","Лукоморье",17,null,26,15,"+",28,26.981475126464083]
[31,"Цай Тимур ",2004,"2 юн.","Крылатый",17,null,26,12,"+",30.5,28.160255680657446]
[32,"Мин Арсений",2004,"б/р","СДЮСШОР-16, Л",17,null,26,12,"+",30.5,28.160255680657446]
[33,"Евсюков Георгий ",2004,"б\\р","Крылатый",17,"+",17.5,9,null,53,{"$f":"(K39*H39)^0.5","v":30.454884665682123}]
[34,"Чаленко Андпей","2003","б\\р","Искра",17,null,26,12,null,38,31.432467291003423]
[35,"Солодянкин Никита",2003,"б/р","Созвездие",17,null,26,12,null,38,31.432467291003423]
[36,"Шмальц Дмитрий","2004",null,"Индиго",16,"+",28,12,null,38,32.619012860600179]
[37,"Белозёров Северьян ",2004,"б\\р","Крылатый",16,"+",28,12,null,38,32.619012860600179]
[38,"Скороходов Александр ",2004,"б/р","Петрова",16,null,38.5,12,"+",30.5,34.267331381360876]
[39,"Ревин Александр ",2002,"б\\р","Крылатый",17,null,26,11,null,49,35.693136595149497]
[40,"Ведерников Лев","2005",null,"Индиго",16,null,38.5,12,null,38,38.249182997810557]
[41,"Харин Витя",2003,"б/р","Петрова",16,null,38.5,11,null,49,43.433857760967996]
[42,"Верховец Радомир ",2005,"б/р","Конус",10,"+",43,11,"+",44.5,43.743570956198809]
[43,"Унтеров Александр","2002","б\\р","Лукоморье",5,null,52.5,12,null,38,44.665422868254588]
[44,"Бушевич Матвей ",2005,"б/р","Конус",5,null,52.5,12,null,38,44.665422868254588]
[45,"Якушевич Никита ",2005,"б/р","Конус",15,null,41.5,11,null,49,45.094345543537941]
[46,"Цыганов Всеволод",2007,"б/р",null,8,null,46,11,null,49,47.47630988187688]
[47,"Басалаев Александр",2004,"б/р","Созвездие",4,null,61,12,null,38,48.145612468842891]
[48,"Чахлов Артём ",2003,"б\\р","Крылатый",4,null,61,12,null,38,48.145612468842891]
[49,"Доронин Данил ",2003,"б/р","Петрова",15,null,41.5,7,null,57.5,48.849257926809905]
[50,"Мелентьев Тимофей ",2005,"б\\р","Крылатый",10,null,44,7,null,57.5,50.299105359837164]
[51,"Вершинин Александр","2002","б\\р","Лукоморье",5,null,52.5,11,null,49,50.719818611663037]
[52,"Тукенов Тамерлан","2002","б\\р","Лукоморье",4,null,61,11,"+",44.5,52.100863716449076]
[53,"Астахов Григорий",2005,"б/р","Лукоморье, В",9,null,45,6,"+",61,52.392747589718944]
[54,"Макаров Роман",2007,"б/р","СДЮСШОР-16",5,null,52.5,8,null,54,53.244718047896548]
[55,"Поздняков Никита ",2003,"б/р","Конус",4,null,61,11,null,49,54.671747731346578]
[56,"Стрекачёв Григорий","2004","б/р","Индиго",5,null,52.5,7,null,57.5,54.943152439589774]
[57,"Долгих Демьян","2005","б/р","Лукоморье, В",3,null,66,11,null,49,56.868268832451726]
[58,"Миронов Иван","2003","б\\р","Лукоморье",5,null,52.5,4,null,63.5,57.738635245388338]
[59,"Карнаухов Егор",2002,"б/р","Лукоморье",5,null,52.5,4,null,63.5,57.738635245388338]
[60,"Печальнов Василий",2008,"б/р","СДЮСШОР-16",5,null,52.5,4,null,63.5,57.738635245388338]
[61,"Соколов Владислав ",2003,"б\\р","Крылатый",4,null,61,7,null,57.5,59.224150479344154]
[62,"Павлов Леонид",2003,"б/р","Петрова",4,null,61,7,null,57.5,59.224150479344154]
[63,"Шошин Роман ",2003,"б\\р","Крылатый",4,null,61,7,null,57.5,59.224150479344154]
[64,"Юрьев Константин",2004,"б/р","СДЮСШОР-16",4,null,61,4,null,63.5,62.23744853382086]
[65,"Пешкин Антон","2003","б\\р","Лукоморье",17,null,26,null,null,null,63]
[66,"Хохлов Артём",2004,"б\\р","Крылатый",null,null,null,12,"+",30.5,64]
[67,"Донцов Ярослав",2009,"б\\р",null,4,null,61,null,null,null,65]

{"sheet":"ж. 2005-2002","index":3,"n_rows":34,"n_cols":16,"rows_kept":34,"cut":false,"hidden":false,"merged":[[4,15,5,15],[4,0,5,0],[4,4,5,4],[4,1,5,1],[4,12,4,14]]}
[]
[null,null,"ИТОГОВЫЙ ПРОТОКОЛ"]
[null,null,"Подростки девушки 2005-2002"]
[]
["Место","Фамилия, Имя","Год",null,"Команда","Квалификация",null,null,"Квалификация",null,null,null,"Финал",null,null,"Вып. Разр."]
[null,null,"рожд.","разр.",null,"рез.","+","Балл","рез.","+","Балл","Рейтинг","рез.","+","Время"]
[1,"Скультецкая Ольга","2002",2,"СДЮСШОР-16","TOP",null,"9,5","ТОР",null,8.5,{"$f":"(H7*K7)^0.5","v":8.9861003778057142},"ТОР",null,null,2]
[2,"Пляшешникова Екатерина","2002",2,"СДЮСШОР-16, Л","TOP",null,"9,5","ТОР",null,8.5,8.9861003778057142,16,null,null,3]
[3,"Костылева Света","2004",3,"Искра","ТОР",null,"9,5","TOP",null,8.5,8.9861003778057142,11,null,null,3]
[4,"Павлюк Анна ","2002","б/р","Ирбис","TOP",null,"9,5","ТОР",null,8.5,8.9861003778057142,10,null,null,"1ю"]
[5,"Овсянникова Катя","2002","3ю","Искра","ТОР",null,"9,5","TOP",null,8.5,8.9861003778057142,9,"+",null,"2ю"]
[6,"Петроченко Софья","2005","б/р","Лукоморье, В","ТОР",null,"9,5","TOP",null,8.5,8.9861003778057142,8,"+",null,"3ю"]
[7,"Жиляева Алена ","2002","2ю","СДЮСШОР-16","TOP",null,"9,5","ТОР",null,8.5,8.9861003778057142,8,"+",null,"3ю"]
[8,"Скороходова Марина","2003","б/р","Созвездие","TOP",null,"9,5","ТОР",null,8.5,8.9861003778057142,8,"+",null,"3ю"]
[9,"Санкевич Наталья","2004","б/р","Ирбис","TOP",null,"9,5","ТОР",null,8.5,8.9861003778057142,7,null,null,"3ю"]
[10,"Кривошеина Яна","2002","1ю","СДЮСШОР-16, Л","TOP",null,"9,5","ТОР",null,8.5,8.9861003778057142,7,null,null,"3ю"]
[11,"Соломина Марта",2004,"б/р","СДЮСШОР-16, Л","TOP",null,"9,5","ТОР",null,8.5,8.9861003778057142,7]
[12,"Скороходова Валерия",2004,"1ю","СДЮСШОР-16, Л","TOP",null,"9,5","ТОР",null,8.5,8.9861003778057142,7]
[13,"Репель Виктория ","2004","б/р","Созвездие","TOP",null,"9,5","ТОР",null,8.5,8.9861003778057142,6,"+"]
[14,"Марамзина София","2002","б/р","Крылатый","ТОР",null,"9,5","TOP",null,8.5,8.9861003778057142,3,"+"]
[15,"Федорчук Елена","2003","б/р","Созвездие","TOP",null,"9,5","ТОР",null,8.5,8.9861003778057142,2,"+"]
[16,"Гончар Елена","2005","б/р","Лукоморье, В","ТОР",null,"9,5",6,"+",21,{"$f":"(H22*K22)^0.5","v":14.124446891825535}]
[17,"Кириенко Елизавета","2004","б/р","Крылатый",18,null,"24,5","ТОР",null,8.5,14.430869689661812]
[18,"Ахтамзянова Эвелина","2005","б/р","Созвездие","TOP",null,"9,5",6,null,24,15.0996688705415]
[19,"Ждамирова Мария",2004,"б/р","СДЮСШОР-16, Л","TOP",null,"9,5",6,null,24,15.0996688705415]
[20,"Швецова Алиса","2005","б/р","Созвездие",21,null,"20,5",19,null,17.5,18.940696924875812]
[21,"Харькова Мирослава ","2004","б/р","Арба",21,null,"20,5",14,null,19,19.735754355990551]
[22,"Бугаева Анастасия ",2002,"б/р","СДЮСШОР-16, Л",20,null,"23",19,null,17.5,20.062402647738878]
[23,"Пак Татьяна","2006","б/р","Лукоморье",21,null,"20,5",13,null,20,20.248456731316587]
[24,"Конотопская Полина","2005","б/р","Лукоморье, В",18,null,"24,5",6,null,24,24.248711305964282]
[25,"Чернобай Анастасия","2008","б/р","Искра",21,null,"20,5",5,null,29,24.382370680473219]
[26,"Конотопская Татьяна","2005","б/р","Лукоморье, В",14,null,"26",6,null,24,24.979991993593593]
[27,"Солодова Юлия ","2003","б/р","СДЮСШОР-16",10,null,27.5,6,null,24,25.690465157330259]
[28,"Григорьева Ксения","2008","б/р","Сдюсшор, Л",10,null,"27,5",4,null,30,28.722813232690143]

{"sheet":"М.2001-2000","index":4,"n_rows":33,"n_cols":16,"rows_kept":33,"cut":false,"hidden":false,"merged":[[4,15,5,15],[4,0,5,0],[4,1,5,1],[4,3,5,3],[4,4,5,4],[4,11,5,11]]}
[]
[]
[null,null,"ИТОГОВЫЙ ПРОТОКОЛ"]
[null,null,"Мальчики 2001-2000"]
["Место","Фамилия, Имя","Год","разр.","Команда","Квалификация",null,null,"Квалификация 2",null,null,"Рейтинг","Финал",null,null,"Вып. Разр."]
[null,null,"рожд.",null," ","рез.","+","Балл","рез.","+","Балл",null,"рез.","+","Время"]
[1,"Атепаев Антон","2000",1,"СДЮСШОР-16, Л","ТОР",null,3.5,"ТОР",null,5.5,{"$f":"(K7*H7)^0.5","v":4.3874821936960613},"TOP",null,"00:01:54.750",1]
[2,"Лощенко Иван","2001",3,"Искра","ТОР",null,3.5,"ТОР",null,5.5,4.3874821936960613,"TOP",null,"00:02:03.090",1]
[3,"Долгих Даниил","2001",2,"СДЮСШОР-16","ТОР",null,3.5,"ТОР",null,5.5,4.3874821936960613,"TOP",null,"00:02:03.310",2]
[4,"Скультецкий Марк ","2000",2,"СДЮСШОР-16","ТОР",null,3.5,"ТОР",null,5.5,4.3874821936960613,"TOP",null,"00:02:36.880",2]
[5,"Логунов Александр ","2000",1,"СДЮСШОР-16, Л","ТОР",null,3.5,"ТОР",null,5.5,4.3874821936960613,28,null,null,2]
[6,"Логвиненко Данила ","2001",2,"СДЮСШОР-16, Л",18,"+",7,"ТОР",null,5.5,6.2048368229954285,23,null,null,3]
[7,"Коннов Михаил","2000",3,"Искра","ТОР",null,3.5,"ТОР",null,5.5,4.3874821936960613,12,null,null,3]
[8,"Лаецкий Алексей","2001",3,"СДЮСШОР-16",15,"+",8,"ТОР",null,5.5,6.6332495807107996,8,null,null,3]
[9,"Соломин Глеб","2001",2,"СДЮСШОР-16, Л",14,null,9,"ТОР",null,5.5,7.0356236397351442,null,null,null,3]
[10,"Коваленко Владислав","2001",2,"СДЮСШОР-16, Л",5,null,17,"ТОР",null,5.5,9.6695398029068578,null,null,null,"1ю"]
[11,"Кучарбаев Максим ","2000","1ю ","СДЮСШОР-16",10,"+",10.5,11,null,11,10.747092630102339,null,null,null,"1ю"]
[12,"Никитин Евгений","2001","б\\р","Юкра",10,"+",10.5,9,null,12,11.224972160321824,null,null,null,"2ю"]
[13,"Брусенцов Анатолий",2000,"б/р","Конус",7,null,12,8,"+",14,12.961481396815721,null,null,null,"3ю"]
[14,"Ткаченко Анатолий","2001","б\\р","Индиго",5,null,17,8,"+",14,15.427248620541512,null,null,null,"3ю"]
[15,"Королёв Костя","2001","б\\р","Индиго",5,"+",13,4,null,19,15.716233645501712,null,null,null,"3ю"]
[16,"Волков Ярослав","19.12.2001","б\\р","Крылатый",5,null,17,7,"+",16.5,16.748134224444225,null,null,null,"3ю"]
[17,"Сурков Дмитрий","27.05.01","б/р","Ирбис",4,"+",21.5,8,"+",14,17.349351572897472]
[18,"Бурков Олег ","2000","3ю","СДЮСШОР-16",5,null,17,4,"+",18,17.4928556845359]
[19,"Куликов Игорь","2000","б\\р","Лукоморье, В",5,null,17,3,"+",21,18.894443627691185]
[20,"Прусских Илья","09.10.2001","2ю","Крылатый",4,null,23,7,"+",16.5,19.480759738778158]
[21,"Досужев Александр ","27.04.00","б/р","Арба",5,null,17,3,null,24.5,20.40833163195855]
[22,"Исмаилов Рустам","09.03.2000","б\\р","Крылатый",5,null,17,3,null,24.5,20.40833163195855]
[23,"Шумков Максим ",2000,"б/р","Конус",4,"+",21.5,3,"+",21,21.248529360875779]
[24,"Шелезенко Никита ","08.06.2000","2ю","Крылатый",1,"+",26.5,3,"+",21,23.590252224170897]
[25,"Сафонов Геннадий ","22.03.2001","б\\р","Крылатый",3,null,24,3,null,24.5,24.248711305964282]
[26,"Стрекачёв Данила","2001","б\\р","Индиго",2,null,25,3,null,24.5,24.748737341529164]
[27,"Крупин Влад","2002","б\\р","Юкра",1,"+",26.5,null,null,27,26.748831750190512]

{"sheet":"ж.2001-2000","index":5,"n_rows":16,"n_cols":16,"rows_kept":16,"cut":false,"hidden":false,"merged":[[4,15,5,15],[4,0,5,0],[4,1,5,1],[4,3,5,3],[4,4,5,4],[4,12,4,14],[4,8,4,10],[4,11,5,11]]}
[]
[]
[null,null,"ИТОГОВЫЙ ПРОТОКОЛ"]
[null,null,"Девушки 2001-2000"]
["Место","Фамилия, Имя","Год","разр.","Команда","Квалификация",null,null,"Квалификация 2",null,null,"Рейтинг","Финал",null,null,"Вып. Разр."]
[null,null,"рожд.",null," ","рез.","+","Балл","рез.","+","Балл",null,"рез.","+","Время"]
[1,"Филатьева Юлия","2001",2,"Искра","ТОР",null,2,"ТОР",null,"5",3.1622776601683795,11,"+",null,3]
[2,"Амбарцумова Ирина","2000",3,"Искра","ТОР",null,2,"ТОР",null,"5",3.1622776601683795,11,null,null,3]
[3,"Коновалова Алена ","2001","3ю","СДЮСШОР-16",16,null,7,"ТОР",null,"5",5.9160797830996161,5,"+",null,"1ю"]
[4,"Флоровская Ульяна","2001","1ю","СДЮСШОР-16","ТОР",null,2,"ТОР",null,"5",3.1622776601683795,5,null,null,"2ю"]
[5,"Сафонова Виталина  ","2001","1ю","СДЮСШОР-16",16,null,7,"ТОР",null,"5",5.9160797830996161,5,null,null,"2ю"]
[6,"Хромова Ульяна","2001","1ю","Искра",16,null,7,"ТОР",null,"5",5.9160797830996161,5,null,null,"3ю"]
[7,"Жукова Дарья ","2000","б/р","СДЮСШОР-16",16,null,7,"ТОР",null,"5",5.9160797830996161,5]
[8,"Мытницкая Мария",2000,"3ю","Крылатый",16,null,7,"ТОР",null,"5",5.9160797830996161,5]
[9,"Кожомина Дарья ",2001,"б/р","Конус",16,null,7,"ТОР",null,"5",5.9160797830996161,4]
[10,"Пальцева Анастасия","2000","б/р","Юкра",16,null,7,7,null,"10",8.3666002653407556,2]

{"sheet":"М.1999-1998","index":6,"n_rows":21,"n_cols":16,"rows_kept":21,"cut":false,"hidden":false,"merged":[[4,0,5,0],[4,1,5,1],[4,3,5,3],[4,4,5,4],[4,15,5,15],[4,8,4,10],[4,11,5,11]]}
[]
[]
[null,null,"ИТОГОВЫЙ ПРОТОКОЛ"]
[null,null,"Юноши 1999-1998"]
["Место","Фамилия, Имя","Год","разр.","Команда","Квалификация",null,null,"Квалификация",null,null,"Рейтинг","Финал",null,null,"Вып. Разр."]
[null,null,"рожд.",null," ","рез.","+","Балл","рез.","+","Балл",null,"рез.","+","время"]
[1,"Цветков Геннадий  ","1998",2,"СДЮСШОР-16","TOP",null,3.5,"TOP",null,2.5,{"$f":"(K7*H7)^0.5","v":2.9580398915498081},"TOP",null,"00:01:54.470",2]
[2,"Елфимов Борис","1998",2,"Индиго","TOP",null,3.5,"TOP",null,2.5,2.9580398915498081,"TOP",null,"00:03:02.970",2]
[3,"Рякин Влад","1998",2,"Индиго","TOP",null,3.5,"TOP",null,2.5,2.9580398915498081,15,"+",null,3]
[4,"Сергиенко Пётр","1999",2,"Крылатый","ТОР",null,3.5,19,null,5,4.1833001326703778,3,"+",null,3]
[5,"Королёв Пётр","1998",3,"Индиго","TOP",null,3.5,12,null,6,4.5825756949558398,13,null,null,"1ю"]
[6,"Володин Вадим","1998","б/р","Индиго",19,"+",7,5,null,7,7,3,"+",null,"2ю"]
[7,"Жаворонок Юрий","1999","1ю","Лукоморье, В",9,null,8,8,"+",8,8,null,null,null,"3ю"]
[8,"Ким Роман","1998","б/р","Индиго",8,null,9.5,5,null,10.5,9.9874921777190888]
[9,"Анисимов Алексей ","1999","б\\р","Крылатый",8,null,9.5,5,null,10.5,9.9874921777190888]
[10,"Нелаев Ростислав  ","1999","б/р","СДЮСШОР-16",6,null,11,5,null,10.5,10.747092630102339]
[11,"Антоненко Игорь","1998","б\\р","Крылатый",5,"+",12.5,5,null,10.5,11.456439237389599]
[12,"Макеев Денис","1999","б/р","Лукоморье, В",5,"+",12.5,4,"+",13,12.747548783981962]
[13,"Мельников Сергей","1999","б/р","Юкра",5,null,14,9,null,14,14]
[14,"Лысенко Александр в\\к","1997",1,"СДЮСШОР-16","TOP",null,3.5,"TOP",null,2.5,2.9580398915498081]
[15,"Дергайм Павел в\\к","1997","КМС","СДЮСШОР-16",null,null,null,null,null,null,null,"TOP"]

{"sheet":"Ж.1999-1998","index":7,"n_rows":15,"n_cols":16,"rows_kept":15,"cut":false,"hidden":false,"merged":[[4,15,5,15],[4,11,5,11],[4,12,4,14],[4,0,5,0],[4,1,5,1],[4,3,5,3],[4,4,5,4],[4,8,4,10]]}
[]
[]
[null,null,"ИТОГОВЫЙ ПРОТОКОЛ"]
[null,null,"Девушки 1999-1998"]
["Место","Фамилия, Имя","Год","разр.","Команда","Квалификация",null,null,"Квалификация",null,null,"Рейтинг","Финал",null,null,"Вып. Разр."]
[null,null,"рожд.",null," ","рез.","+","Балл","рез.","+","Балл",null,"рез.","+","Время"]
[1,"Елфимова Анастасия",1999,3,"Индиго",16,"+",null,"TOP",null,null,null,"TOP",null,null,"1ю"]
[2,"Пролиско Алена",1999,"б/р","Юкра",16,"+",null,"TOP",null,null,null,8,"+",null,"2ю"]
[3,"Величевская Василиса",1999,"1ю","Юкра",11,null,null,12,null,null,null,8,"+"]
[4,"Стальнова Мария ","1999","б/р","СДЮСШОР-16",3,"+",null,12]
[5,"Альмаметова Алена",1998,"б/р","Лукоморье, В"]
[6,"Терентьева Маргарита",1998,"б/р","Лукоморье, В"]
[7,"Зайцева Эвилина",1999,"б/р","Конус"]
[8,"Фоминых Татьяна ",1999,"б/р","Конус"]
[9,"Копылова Вероника","1998.","б/р","Крылатый"]

{"sheet":"Лист1","index":8,"n_rows":46,"n_cols":11,"rows_kept":46,"cut":false,"hidden":true,"merged":[]}
[2,"Рудько Семен",87,"КМС","ДЮСШ-16","TOP",null,1]
[6,"Понамарев Стас",85,"КМС","ДЮСШ-16","TOP",null,1]
[13,"Копытов Федор",88,"КМС","ДЮСШ-16","TOP",null,1]
[14,"Дощинский Максим",85,"КМС","ДЮСШ-16","TOP",null,1]
[17,"Михалев Евгений",81,"б/р","Ариадна","TOP",null,1]
[18,"Параев Сергей",89,"КМС","ДЮСШ-16","TOP",null,1]
[21,"Кобелев Денис",82,1,"ДЮСШ-16","TOP",null,1]
[8,"Карих Дима",72,"КМС","Ветеран",21,null,8]
[9,"Кузнецов Александр",84,"б/р","Ариадна",21,null,8]
[20,"Черкашин Иван",85,"б/р","Ариадна",20,null,10]
[10,"Петухов Виталий",88,1,"ДЮСШ-16",19,"+",11]
[11,"Мякшин Андрей",87,"б/р","Ариадна",19,"+",11]
[12,"Аксименко Витя",88,1,"Арба",19,"+",11]
[16,"Прокопенко Кирилл",89,"КМС","ДЮСШ-16",19,"+",11]
[1,"Жигалов Федор",89,"б/р","Ариадна",19,null,15]
[4,"Татарчуков Саша",91,3,"ДЮСШ-16",19,null,15]
[15,"Мишков Андрей",70,"б/р","Ветеран",19,null,15]
[7,"Чернов Павел",null,"б/р","Ариадна",18,"+",18]
[5,"Новиков Анатолий",89,"б/р","ДЮСШ-16",18,null,19]
[19,"Осмольский Александр",87,"б/р","Арба",15,"+",20]
[3,"Лебедев Александр",87,"б/р","Ариадна",4,null,21]
[1,"Мочалов Иван",82,"б/р","Ариадна",null,null,null,"TOP",null,1]
[2,"Асланов Руслан",89,3,"ДЮСШ-16",null,null,null,"TOP",null,1]
[3,"Терехин Василий",84,"КМС","ТАКТ",null,null,null,"TOP",null,1]
[4,"Жуков Сергей",79,"б/р","Ариадна",null,null,null,"TOP",null,1]
[7,"Морев Артем",89,"КМС","ДЮСШ-16",null,null,null,"TOP",null,1]
[9,"Сидорко Сережа",89,null,"ДЮСШ-16",null,null,null,"TOP",null,1]
[15,"Петин Ваня",null,2,"ТАКТ",null,null,null,"TOP",null,1]
[16,"Назаров Никита",84,"КМС","Сам",null,null,null,"TOP",null,1]
[17,"Федотов Александр",76,"б/р","ТАКТ",null,null,null,"TOP",null,1]
[18,"Филатьев Олег",79,"КМС","Альпклуб",null,null,null,"TOP",null,1]
[19,"Алтухов Антон",84,1,"Ариадна",null,null,null,"TOP",null,1]
[20,"Паршин Антон",81,2,"Барнаул",null,null,null,"TOP",null,1]
[22,"Ложкомоев Саша",82,1,"ДЮСШ-16",null,null,null,"TOP",null,1]
[25,"Новоселов Саша",84,"КМС","ДЮСШ-16",null,null,null,"TOP",null,1]
[5,"ДерешевДанил",86,"б/р","Ариадна",null,null,null,16,null,15]
[6,"Шестаков Василий",88,"б/р","ДЮСШ-16",null,null,null,16,null,15]
[11,"Тулаев Денис",74,"б/р","ТАКТ",null,null,null,16,null,15]
[8,"Субботин Андрей",89,"2ю","ДЮСШ-16",null,null,null,15,null,18]
[10,"Соловьев Тимофей",89,1,"ДЮСШ-16",null,null,null,15,null,18]
[23,"Варюшкин Саша",88,"б/р","ДЮСШ-16",null,null,null,15,null,18]
[14,"Свиридов Костя",82,"б/р","Ариадна",null,null,null,14,null,21]
[13,"Попов Антон",87,"б/р","Кедр",null,null,null,12,null,22]
[12,"Седлецкий Захар",83,"б/р","Альпклуб",null,null,null,11,null,23]
[21,"Калинин Павел",89,"б/р","Арба",null,null,null,11,null,23]
[24,"Гуренков Костя",77,"б/р","Альпклуб",null,null,null,"н/я"]

{"sheet":"Подростки Муж. скорость","index":9,"n_rows":45,"n_cols":16,"rows_kept":45,"cut":false,"hidden":true,"merged":[]}
[]
[null,null,null,null,"ИТОГОВЫЙ ПРОТОКОЛ"]
[null,null,null,null,"юноши младшая группа"]
[]
["Итог.","Фамилия имя отчество","Год","спорт."," "," ",null,"1/4 финала",null,null,"1/2 финала",null,null,"финал",null,"Вып."]
[null,"год рождения","Рожд.","разр.","Город","Тренер","бал.","прим","место","бал.","прим","место","бал.","прим","место","разр."]
[null,"Рудько Семен",87,1,"Томск","Афанасьева"]
[null,"Романов Рома",87,"1ю","Томск","Афанасьева"]
[null,"Пушкарев Дима",87,"б/р","Томск","Афанасьева"]
[null,"Мельников Б",87,"б/р","Томск","Афанасьва"]
[null,"Марков паша",88,"2ю","Томск","Афанасьева"]
[null,"Кошкаров Егор",89,"2ю","Томск","Афанасьева"]
[null,"Юлдашев Тимур",89,2,"Томск","Афанасьева"]
[null,"Ефимов Женя",87,"б.р.","Кемерово","Ильины"]
[null,"Козик Руслан",87,"2 юн","Кемерово","Ильины"]
[null,"Орлов Антон",88,"б.р.","Кемерово","Ильины"]
[null,"Орлов Саша",90,"б.р.","Кемерово","Ильины"]
[null,"Догужский Костя",89,"б.р.","Томск","Лунева"]
[null,"Чеканцев Александр",89,"1 юн","Томск","Лунева"]
[null,"Лещев Владимир",88,"б.р.","Томск","Лунева"]
[null,"Санаров Денис",88,"б.р.","Томск","Лунева"]
[null,"Борцов Захар",87,"б.р.","Томск","Лунева"]
[null,"Борцов Владимир",87,"б.р.","Томск","Лунева"]
[null,"Крымов Алексей",87,2,"Томск","Лунева"]
[null,"Поздеев Саша",91,"б.р.","Новосибирск","Бурдакова"]
[null,"Фаге Алексей",87,"б.р.","Новосибирск","Бурдакова"]
[null,"Попов Максим",87,"б.р.","Новосибирск","Бурдакова"]
[null,"Попов Максим",87,"б.р.","Томск","Немцева"]
[null,"Колбин Петя",87,"б.р.","Томск","Немцева"]
[null,"Сафроненко Андрей",87,"2 юн","Томск","Немцева"]
[null,"Байгулов Андрей",87,3,"Томск","Немцева"]
[null,"Васильев Алексей",87,2,"Томск","Немцева"]
[null,"Аршан Женя",87,"б.р.","Кемерово","Бушуева"]
[null,"Чесноков Саша",87,"б.р.","Кемерово","Бушуева"]
[null,"Мышкевич Саша",88,"б.р.","Кемерово","Бушуева"]
[null,"Лукин Саша",87,"2 юн","Томск","Карих"]
[null,"Хасанов Каиль",87,"б.р.","Томск","Карих"]
[null,"Тихонов Женя",87,"б.р.","Томск","Карих"]
[null,"Хлыстов Миша",88,"б.р.","Томск","Карих"]
[null,"Овчинников Вова",89,"б.р.","Томск","Карих"]
[null,"Морозов Илья",87,"б.р.","Бийск","Пляскин"]
[null,"Сенкевич Сергей",89,"б.р.","Томск","Шлехт"]
[null,"Прокопенко Кирилл",89,3,"Томск","Шлехт"]
[null,"Шурупов Слава",88,"б.р.","Томск","Шлехт"]
[null,"Попов Женя",88,"б.р.","Томск","Шлехт"]

{"sheet":"Младшие Муж. скорость","index":10,"n_rows":34,"n_cols":16,"rows_kept":34,"cut":false,"hidden":true,"merged":[]}
[]
[null,null,null,null,"ИТОГОВЫЙ ПРОТОКОЛ"]
[null,null,null,null,"юноши младшая группа"]
[]
["Итог.","Фамилия имя отчество","Год","спорт."," "," ",null,"1/4 финала",null,null,"1/2 финала",null,null,"финал",null,"Вып."]
[null,"год рождения","Рожд.","разр.","Город","Тренер","бал.","прим","место","бал.","прим","место","бал.","прим","место","разр."]
[null,"Климов Коля",86,2,"Томск","Афанасьева"]
[null,"Жолбосынов Айбек",85,"б/р","Томск","Афанасьева"]
[null,"Мустафин Эльдар",85,"2ю","Томск","Афанасьева"]
[null,"Коротков Миша",85,"КМС","Томск","Афанасьева"]
[null,"Дощинский Максим",85,"кмс","Томск","Афанасьева"]
[null,"Чиндин Сергей",85,1,"Кемерово","Ильины"]
[null,"Лумнов Женя",86,"б.р.","Кемерово","Ильины"]
[null,"Котенко Алексей",86,"б.р.","Кемерово","Ильины"]
[null,"Павлович Николай",85,1,"Томск","Лунева"]
[null,"Чеканцев Никита",85,1,"Томск","Лунева"]
[null,"Пономарев Станислав",85,"КМС","Томск","Лунева"]
[null,"Загвоздин Константин",85,"КМС","Томск","Лунева"]
[null,"Дуплинский Георгий",86,1,"Новокузнецк","Санников"]
[null,"Романцев Максим",85,2,"Новокузнецк","Санников"]
[null,"Коллегов Иван",86,3,"Новосибирск","Бурдакова"]
[null,"Чаюн Игорь",86,2,"Новосибирск","Бурдакова"]
[null,"Максимов Василий",86,"б.р.","Новосибирск","Бурдакова"]
[null,"Качан Алексей",86,"б.р.","Томск","Немцева"]
[null,"Смуткин Егор",86,1,"Томск","Шлехт"]
[null,"Смуткин Андрей",85,"КМС","Томск","Шлехт"]
[null,"Шлехт Егор",85,1,"Томск","Шлехт"]
[null,"Тихонов Егор",85,"б.р.","Томск","Карих"]
[null,"Камышный Толя",86,"б.р.","Томск","Карих"]
[null,"Григорьев Тимофей",85,1,"Бийск","Пляскин"]
[null,"Панюков Паша",86,"б.р.","Кемерово","Бушуева"]
[null,"Кожемяко Эдик",86,"КМС","Кемерово","Бушуева"]
[null,"Деменев Андрей",85,"КМС","Кемерово","Бушуева"]
[null,"Новоселов Женя",86,1,"Томск","Шлехт"]

{"sheet":"Средние Муж. скорость","index":11,"n_rows":26,"n_cols":16,"rows_kept":26,"cut":false,"hidden":true,"merged":[]}
[]
[null,null,null,null,"ИТОГОВЫЙ ПРОТОКОЛ"]
[null,null,null,null,"юноши младшая группа"]
[]
["Итог.","Фамилия имя отчество","Год","спорт."," "," ",null,"1/4 финала",null,null,"1/2 финала",null,null,"финал",null,"Вып."]
[null,"год рождения","Рожд.","разр.","Город","Тренер","бал.","прим","место","бал.","прим","место","бал.","прим","место","разр."]
[null,"Назаров Никита",84,1,"Томск","Афанасьева"]
[null,"Коротков Александр",83,"кмс","Томск","Афанасьева"]
[null,"Александров",84,"КМС","Кемерово","Ильины"]
[null,"Демахин Алеквей",84,"КМС","Кемерово","Ильины"]
[null,"Демахин Алеквей",84,"КМС","Кемерово","Ильины"]
[null,"Ильин Евгений",83,"КМС","Томск","Лунева"]
[null,"Кропотов Андрей",84,"б.р.","Новокузнецк","Санников"]
[null,"Чистяков Сергей",84,"б.р.","Новокузнецк","Санников"]
[null,"Травников Алексей",83,1,"Новокузнецк","Санников"]
[null,"Павлов Иван",84,1,"Новосибирск","Бурдакова"]
[null,"Зверев Олег",84,1,"Томск","Шлехт"]
[null,"Загальский Олег",83,"КМС","Томск","Шлехт"]
[null,"Огурцов Алеша",84,2,"Кемерово","Бушуева"]
[null,"Гуляев Паша",84,"КМС","Кемерово","Бушуева"]
[null,"Залетов Игорь",83,"КМС","Кемерово","Бушуева"]
[null,"Морозов Семен",84,1,"Бийск","Пляскин"]
[null,"Саландо Слава",83,"б.р.","Томск","Карих"]
[null,"Корнев Сергей",83,"б.р.","Томск","Перов"]
[null,"Бочкарев Женя",83,1,"Барнаул","Язовский"]
[null,"Мартынов Егор",84,1,"Барнаул","Язовский"]

{"sheet":"Старшие Муж. скорость","index":12,"n_rows":14,"n_cols":16,"rows_kept":14,"cut":false,"hidden":true,"merged":[]}
[]
[null,null,null,null,"ИТОГОВЫЙ ПРОТОКОЛ"]
[null,null,null,null,"юноши младшая группа"]
[]
["Итог.","Фамилия имя отчество","Год","спорт."," "," ",null,"1/4 финала",null,null,"1/2 финала",null,null,"финал",null,"Вып."]
[null,"год рождения","Рожд.","разр.","Город","Тренер","бал.","прим","место","бал.","прим","место","бал.","прим","место","разр."]
[null,"Борисов А.",82,1,"Томск","Афанасьева"]
[null,"Борисов А.",82,1,"Томск","Афанасьева"]
[null,"Красов Алексей",82,"КМС","Томск","Лунева"]
[null,"Сайгаш Дима",82,"КМС","Томск","Шлехт"]
[null,"Зуев Василий",82,"КМС","Томск","Шлехт"]
[null,"Сафонов Алексей",81,"КМС","Томск","Шлехт"]
[null,"Кучеров Виктор",81,"КМС","Кемерово","Бушуева"]
[null,"Шадринцев Артем",81,"КМС","Бийск","Пляскин"]

{"sheet":"Взрослые Муж. скорость","index":13,"n_rows":21,"n_cols":16,"rows_kept":21,"cut":false,"hidden":true,"merged":[]}
[]
[null,null,null,null,"ИТОГОВЫЙ ПРОТОКОЛ"]
[null,null,null,null,"юноши младшая группа"]
[]
["Итог.","Фамилия имя отчество","Год","спорт."," "," ",null,"1/4 финала",null,null,"1/2 финала",null,null,"финал",null,"Вып."]
[null,"год рождения","Рожд.","разр.","Город","Тренер","бал.","прим","место","бал.","прим","место","бал.","прим","место","разр."]
[null,"Алексеев Игорь",80,"кмс","томск"]
[null,"Гречушкин Саша",80,1,"Новосибирск","Бурдакова"]
[null,"Алексеев Игорь",80,"КМС","Новосибирск","Бурдакова"]
[null,"Ксенчук Андрей",80,"б.р.","Новосибирск","Бурдакова"]
[null,"Мануйлов Виктор",80,3,"Новосибирск","Бурдакова"]
[null,"Чащин Дима",79,3,"Томск","Шлехт"]
[null,"Залетов Андрей",80,"КМС","Кемерово","Бушуева"]
[null,"Алексеев Игорь",80,"КМС","Новосибирск","Бурдакова"]
[null,"Ксенчук Андрей",80,"б.р.","Новосибирск","Бурдакова"]
[null,"Гречушкин Александр",80,1,"Новосибирск","Бурдакова"]
[null,"Мануйлов Виктор",80,2,"Новосибирск","Бурдакова"]
[null,"Леонтьев Н.",80,"КМС","Барнаул","Язовский"]
[null,"Яшин Егор",79,1,"Томск","\"Арба\""]
[null,"Бекенов Ерлан",80,"б.р.","Томск","\"Ариадна\""]
[null,"Иваненко",79,"б.р.","Томск","?"]

{"sheet":"Подростки Жен. скорость","index":14,"n_rows":24,"n_cols":16,"rows_kept":24,"cut":false,"hidden":true,"merged":[]}
[]
[null,null,null,null,"ИТОГОВЫЙ ПРОТОКОЛ"]
[null,null,null,null,"юноши младшая группа"]
[]
["Итог.","Фамилия имя отчество","Год","спорт."," "," ",null,"1/4 финала",null,null,"1/2 финала",null,null,"финал",null,"Вып."]
[null,"год рождения","Рожд.","разр.","Город","Тренер","бал.","прим","место","бал.","прим","место","бал.","прим","место","разр."]
[null,"Куликова Люба",87,"2ю","Томск","Афанасьева"]
[null,"Хорсова Алена",87,"б/р","Томск","Афанасьева"]
[null,"Мареева Ира",88,"б/р","Томск","Афанасьева"]
[null,"Мареева Ира",88,"б/р","Томск","Афанасьева"]
[null,"Зайцева Лиза",87,"2 юн","Кемерово","Ильины"]
[null,"Форманчук Надя",88,"б.р.","Кемерово","Ильины"]
[null,"Форманчук Надя",88,"б.р.","Кемерово","Ильины"]
[null,"Горбунова Вика",88,"б.р.","Томск","Лунева"]
[null,"Павлова Ольга",87,"б.р.","Томск","Лунева"]
[null,"Горохова Катя",90,"б.р.","Новосибирск","Бурдакова"]
[null,"Горохова Катя",90,3,"Новосибирск","Бурдакова"]
[null,"Поздеева Катя",90,"б.р.","Новосибирск","Бурдакова"]
[null,"Гольдман Женя",87,"б.р.","Новосибирск","Бурдакова"]
[null,"Урманчеева Наиля",87,"б.р.","Томск","Немцева"]
[null,"Морозова Кристина",87,"б.р.","Кемерово","Бушуева"]
[null,"Зименс Аня",88,"б.р.","Кемерово","Бушуева"]
[null,"Линник Аня",87,"б.р.","Томск","Карих"]
[null,"Борзова Аня",87,3,"Бийск","Пляскин"]

{"sheet":"Младшие Жен. скорость","index":15,"n_rows":15,"n_cols":16,"rows_kept":15,"cut":false,"hidden":true,"merged":[]}
[]
[null,null,null,null,"ИТОГОВЫЙ ПРОТОКОЛ"]
[null,null,null,null,"юноши младшая группа"]
[]
["Итог.","Фамилия имя отчество","Год","спорт."," "," ",null,"1/4 финала",null,null,"1/2 финала",null,null,"финал",null,"Вып."]
[null,"год рождения","Рожд.","разр.","Город","Тренер","бал.","прим","место","бал.","прим","место","бал.","прим","место","разр."]
[null,"Попельняк Олеся",86,"2ю","Томск","Афанасева"]
[null,"Гаврилюк Катя",86,2,"Кемерово","Ильины"]
[null,"Лунева Ирина",85,"б.р.","Томск","Лунева"]
[null,"Пономарева Валерия",85,2,"Томск","Лунева"]
[null,"Ком Ольга",86,2,"Томск","Шлехт"]
[null,"Рыбалова Оля",85,"б.р.","Томск","Шлехт"]
[null,"Жукова Валя",86,"б.р.","Томск","Карих"]
[null,"Леонтюк Ульяна",86,"б.р.","Томск","Карих"]
[null,"Панова Женя",86,"б.р.","Бийск","Пляскин"]

{"sheet":"Средние Жен. скорость","index":16,"n_rows":13,"n_cols":16,"rows_kept":13,"cut":false,"hidden":true,"merged":[]}
[]
[null,null,null,null,"ИТОГОВЫЙ ПРОТОКОЛ"]
[null,null,null,null,"юноши младшая группа"]
[]
["Итог.","Фамилия имя отчество","Год","спорт."," "," ",null,"1/4 финала",null,null,"1/2 финала",null,null,"финал",null,"Вып."]
[null,"год рождения","Рожд.","разр.","Город","Тренер","бал.","прим","место","бал.","прим","место","бал.","прим","место","разр."]
[null,"Ильина Ксения",83,1,"Томск","Лунева"]
[null,"Гильманова Вероника",84,3,"Новокузнецк","Санников"]
[null,"Дуплинская Юля",83,"КМС","Новокузнецк","Санников"]
[null,"Сиволапова Екатерина",83,"КМС","Новокузнецк","Санников"]
[null,"Бурдакова Юля",83,"КМС","Новосибирск","Бурдакова"]
[null,"Бугрова Таня",83,"б.р.","Томск","Шлехт"]
[null,"Крачковская Инга",84,"б.р.","Кемерово","Бушуева"]

{"sheet":"Старшие Жен. скорость","index":17,"n_rows":10,"n_cols":16,"rows_kept":10,"cut":false,"hidden":true,"merged":[]}
[]
[null,null,null,null,"ИТОГОВЫЙ ПРОТОКОЛ"]
[null,null,null,null,"юноши младшая группа"]
[]
["Итог.","Фамилия имя отчество","Год","спорт."," "," ",null,"1/4 финала",null,null,"1/2 финала",null,null,"финал",null,"Вып."]
[null,"год рождения","Рожд.","разр.","Город","Тренер","бал.","прим","место","бал.","прим","место","бал.","прим","место","разр."]
[null,"Киселева Вероника",82,1,"Кемерово","Ильины"]
[null,"Лунева Лена",81,"КМС","Томск","Лунева"]
[null,"Ларионова Ирина",81,"КМС","Томск","Шлехт"]
[null,"Бадрутдинова Наташа",81,1,"Томск","Шлехт"]

{"sheet":"Взрослые Жен. скорость","index":18,"n_rows":7,"n_cols":16,"rows_kept":7,"cut":false,"hidden":true,"merged":[]}
[]
[null,null,null,null,"ИТОГОВЫЙ ПРОТОКОЛ"]
[null,null,null,null,"юноши младшая группа"]
[]
["Итог.","Фамилия имя отчество","Год","спорт."," "," ",null,"1/4 финала",null,null,"1/2 финала",null,null,"финал",null,"Вып."]
[null,"год рождения","Рожд.","разр.","Город","Тренер","бал.","прим","место","бал.","прим","место","бал.","прим","место","разр."]
[null,"Ларина Лена",79,"б.р.","Томск","Шлехт"]

{"sheet":"Лист2","index":29,"n_rows":16,"n_cols":5,"rows_kept":16,"cut":false,"hidden":false,"merged":[]}
[]
[1,"Капитонова Анастасия","00",2,"Кемерово"]
[2,"Тузкова Валерия","00",2,"Кемерово"]
[2,"Попова Алина","00",2,"Рубцовск"]
[]
[1,"Атепаев Антон","00","1ю","СДЮСШОР-16"]
[1,"Шулятьев Николай",99,2,"Кемерово"]
[3,"Скультецкий Марк","00",3,"СДЮСШОР-16"]
[]
[1,"Скультецкая Ольга","02","1ю","СДЮСШОР-16"]
[2,"Постылякова Саша","01",3,"Рубцовск"]
[3,"Галямова Надежда","01","б/р","Кедр Перова"]
[]
[1,"Чье Стас","02","1ю","СДЮСШОР-16"]
[2,"Лаецкий Алексей","01","3ю","СДЮСШОР-16"]
[3,"Темерев Влад","02","б\\р","Кедр"]